bitfinex-derivatives/quotes_ETHF0:USTF0_20260115
["timestamp","ask_amount","ask_price","bid_price","bid_amount"]
[1768449654996,0.86480717,3286.6,3285.6,0.0019272]
[1768449655294,0.86480717,3286.5,3285.6,0.0019272]
[1768449655495,0.86480717,3286.4,3285.6,0.0019272]
[1768449655684,4.72010093,3286.7,3285.6,0.0019272]
[1768449655888,0.86476872,3286.6,3285.6,0.0019272]
[1768449656186,0.86476872,3286.5,3285.6,0.0019272]
[1768449656494,0.86476872,3286.4,3285.6,0.0019272]
[1768449656691,3.48470901,3286.6,3285.6,0.0019272]
[1768449656898,0.86475848,3286.5,3285.6,0.0019272]
[1768449657088,0.86475848,3286.4,3285.6,0.0019272]
[1768449657293,3.48470901,3286.6,3285.6,0.0019272]
[1768449657494,0.86475307,3286.5,3285.6,0.0019272]
[1768449657693,0.86475307,3286.4,3285.6,0.0019272]
[1768449657897,3.48470901,3286.6,3285.6,1.23731912]
[1768449658101,0.86476542,3286.5,3285.6,1.23731912]
[1768449658284,0.86476542,3286.4,3285.6,1.23731912]
[1768449658488,3.48470901,3286.6,3285.6,1.23731912]
[1768449658689,0.86482446,3286.5,3285.6,1.23731912]
[1768449658889,3.48470901,3286.6,3285.6,1.23731912]
[1768449659089,0.86482044,3286.5,3285.6,1.23731912]
[1768449659292,3.48470901,3286.6,3285.6,1.23731912]
[1768449659488,0.86482834,3286.5,3285.6,1.23731912]
[1768449659693,3.48470901,3286.6,3285.6,1.23731912]
[1768449659893,0.86482207,3286.5,3285.6,1.23731912]
[1768449660104,3.48470901,3286.6,3285.6,1.23731912]
[1768449660298,0.86481141,3286.5,3285.6,1.23731912]
[1768449660501,3.48470901,3286.6,3285.6,1.23731912]
[1768449660689,0.86481904,3286.5,3285.6,1.23731912]
[1768449660985,3.48470901,3286.6,3285.6,1.23731912]
[1768449661185,0.86482308,3286.5,3285.6,1.23731912]
[1768449661386,3.48470901,3286.6,3285.6,0.0019272]
[1768449661586,0.86486403,3286.5,3285.9,1.23539192]
[1768449661789,0.00456253,3286.9,3285.9,1.23539192]
[1768449662000,0.86485261,3286.8,3285.9,1.23539192]
[1768449662198,0.86485261,3286.7,3285.9,1.23539192]
[1768449662501,0.86485261,3286.6,3285.7,1.23539192]
[1768449662704,0.00456253,3286.9,3285.7,1.23539192]
[1768449663000,4.34956561,3286.8,3285.6,0.0019272]
[1768449663305,4.34956561,3286.7,3285.6,0.0019272]
[1768449663493,0.8648566,3286.6,3285.6,0.0019272]
[1768449663693,4.34956561,3286.6,3285.6,0.0019272]
[1768449663996,0.8648566,3286.5,3285.6,0.0019272]
[1768449670108,4.34956561,3286.5,3285.6,0.0019272]
[1768449670411,3.48470901,3286.5,3285.6,0.0019272]
[1768449678710,0.86506792,3286.4,3285.6,0.0019272]
[1768449678897,3.48470901,3286.5,3285.6,0.0019272]
[1768449679102,0.8650669,3286.4,3285.6,0.0019272]
[1768449679297,3.48470901,3286.5,3285.6,0.0019272]
[1768449681715,0.8650686,3286.4,3285.6,0.0019272]
[1768449681908,3.48470901,3286.5,3285.6,0.0019272]
[1768449682113,0.86506708,3286.4,3285.6,0.0019272]
[1768449682316,3.48470901,3286.5,3285.6,0.0019272]
[1768449682504,0.86508674,3286.4,3285.6,0.0019272]
[1768449682710,3.48470901,3286.5,3285.6,0.0019272]
[1768449682911,0.86508495,3286.4,3285.6,0.0019272]
[1768449683210,3.48470901,3286.5,3285.6,0.0019272]
[1768449683410,0.86509501,3286.4,3285.6,0.0019272]
[1768449683604,3.48470901,3286.5,3285.0,1.244]
[1768449683807,3.41237716,3286.3,3285.0,1.244]
[1768449684601,3.41237716,3286.3,3285.0,1.24794435]
[1768449687519,3.41237716,3286.7,3285.3,1.23575144]
[1768449687809,0.86518852,3286.6,3285.3,1.23575144]
[1768449688022,0.86518852,3286.5,3285.3,1.23575144]
[1768449688213,0.00456253,3286.9,3285.3,1.23575144]
[1768449688214,0.00456253,3286.9,3286.1,1.23575144]
[1768449688511,3.41237716,3287.1,3286.1,1.23575144]
[1768449689414,0.00456253,3286.9,3286.1,1.23575144]
[1768449690309,0.00456253,3286.9,3286.2,0.00456253]
[1768449692521,3.41237716,3287.5,3286.2,0.00456253]
[1768449693420,0.00456253,3287.2,3286.2,0.00456253]
[1768449693620,0.00697668,3287.2,3286.2,0.00456253]
[1768449694818,3.41237716,3287.9,3286.5,1.23575144]
[1768449695422,3.41237716,3287.9,3286.2,0.00456253]
[1768449695818,0.00456253,3287.4,3286.2,0.00456253]
[1768449696118,3.41693969,3287.4,3286.2,0.00456253]
[1768449697711,4.65269113,3287.4,3286.2,0.00456253]
[1768449697914,3.41237716,3287.3,3285.5,1.243]
[1768449701725,3.41237716,3287.3,3285.8,1.23575144]
[1768449702927,3.41237716,3287.3,3286.2,0.00456253]
[1768449706726,3.41237716,3287.3,3286.2,1.24031397]
[1768449707128,0.00456253,3287.4,3286.2,1.24031397]
[1768449712443,0.00456253,3287.4,3286.2,4.86597923]
[1768449715044,0.00456253,3287.4,3286.3,1.242]
[1768449717440,0.00456253,3287.4,3286.3,4.86766526]
[1768449717640,0.00309529,3287.9,3287.1,1.23575144]
[1768449717846,3.57777438,3288.3,3287.1,1.23575144]
[1768449718144,3.57777438,3288.3,3287.5,1.23575144]
[1768449718344,3.57777438,3288.7,3287.1,1.23575144]
[1768449718544,0.00456253,3288.2,3287.6,0.00456253]
[1768449718737,0.00705481,3288.2,3287.6,0.00800657]
[1768449720340,3.58482919,3288.2,3287.6,0.00800657]
[1768449720545,3.58482919,3288.2,3287.0,1.242]
[1768449721544,3.58482919,3288.2,3287.3,0.00456253]
[1768449723940,0.00705481,3288.2,3287.3,0.00456253]
[1768449724540,3.57777438,3288.7,3287.5,1.23575144]
[1768449725047,3.57777438,3288.7,3287.3,0.00456253]
[1768449725749,0.00456253,3288.3,3287.3,0.00456253]
[1768449726846,0.00363837,3288.7,3287.8,1.23575144]
[1768449727949,0.00456253,3288.6,3287.8,1.23575144]
[1768449728348,0.00363837,3288.7,3287.8,1.23575144]
[1768449728847,0.00363837,3288.7,3287.0,0.00369216]
[1768449728848,4.43028361,3288.6,3287.0,0.00369216]
[1768449729053,3.57777438,3288.4,3287.0,0.00369216]
[1768449729850,3.57777438,3288.4,3287.4,0.00456253]
[1768449731355,3.57777438,3288.4,3287.4,1.23885269]
[1768449731553,3.57777438,3288.4,3287.6,1.23429016]
[1768449732543,0.00456253,3288.3,3287.6,1.23429016]
[1768449733451,0.00456253,3288.3,3287.4,1.23885269]
[1768449733647,0.00456253,3288.3,3287.6,1.23429016]
[1768449734347,0.00456253,3288.3,3287.8,1.23429016]
[1768449736454,0.00363837,3288.7,3287.8,1.23429016]
[1768449736756,0.00363837,3288.7,3287.4,0.00456253]
[1768449736757,0.00363837,3288.7,3288.0,1.23429016]
[1768449738656,0.00363837,3288.7,3287.8,1.23429016]
[1768449739548,0.00456253,3288.6,3287.8,1.23429016]
[1768449740358,0.00456253,3288.6,3288.0,1.23429016]
[1768449742257,0.00363837,3288.7,3288.0,1.23429016]
[1768449745059,0.00668005,3288.7,3288.0,1.23429016]
[1768449745255,3.57777438,3289.2,3288.2,1.23429016]
[1768449745458,4.98019458,3289.7,3288.2,1.23429016]
[1768449745765,2.14855777,3290.0,3288.5,1.23429016]
[1768449745766,4.22405116,3289.6,3288.5,1.23429016]
[1768449745950,0.85527491,3289.5,3288.5,1.23429016]
[1768449746450,0.85851554,3289.5,3288.5,1.23429016]
[1768449746655,0.00324063,3289.5,3288.5,1.23429016]
[1768449747461,0.00324063,3289.5,3288.7,1.23429016]
[1768449747856,0.00324063,3289.5,3288.9,1.23429016]
[1768449748265,3.36877625,3290.0,3288.9,1.23429016]
[1768449748450,3.36877625,3290.0,3289.1,0.00456253]
[1768449748855,0.087,3290.1,3289.1,0.00456253]
[1768449749268,0.09007152,3290.1,3289.1,0.00456253]
[1768449752663,0.00307152,3290.1,3289.1,0.00456253]
[1768449753170,4.60306641,3290.0,3289.1,0.00456253]
[1768449755070,3.36877625,3290.0,3289.1,0.00456253]
[1768449757872,0.00307152,3290.1,3289.1,0.00456253]
[1768449760574,0.00307152,3290.1,3289.3,1.23429016]
[1768449760765,0.00307152,3290.1,3289.1,1.23885269]
[1768449762176,0.00307152,3290.1,3289.3,1.23429016]
[1768449764973,3.36877625,3291.1,3289.9,1.23429016]
[1768449765272,0.15195,3291.2,3290.1,1.23429016]
[1768449765473,4.60306641,3291.4,3290.1,1.23429016]
[1768449765677,0.85386156,3291.3,3290.1,1.23429016]
[1768449765972,0.85386156,3291.2,3290.1,1.23731406]
[1768449766276,3.37216788,3291.3,3290.1,0.0030239]
[1768449766575,0.85368551,3291.2,3290.1,0.0030239]
[1768449766775,3.37216788,3291.3,3290.2,1.23429016]
[1768449767075,3.37216788,3291.3,3290.1,0.0030239]
[1768449767076,0.00339163,3291.3,3290.6,1.23429016]
[1768449767262,0.00339163,3291.3,3290.4,1.23429016]
[1768449769080,0.00339163,3291.3,3290.1,0.0030239]
[1768449769081,0.00339163,3291.3,3290.2,3.3251609]
[1768449769280,0.00339163,3291.3,3290.8,1.23429016]
[1768449769479,1.23429016,3292.1,3290.8,1.23429016]
[1768449769679,6.21027503,3292.2,3291.1,0.00456253]
[1768449770572,6.21264612,3292.2,3291.1,0.00456253]
[1768449770977,6.21264612,3292.2,3291.1,1.23885269]
[1768449772082,6.21264612,3292.2,3291.1,0.00456253]
[1768449772280,6.21264612,3292.2,3291.1,1.23885269]
[1768449772688,2.84386987,3292.2,3291.3,1.23429016]
[1768449772982,0.00237109,3292.2,3291.5,1.23429016]
[1768449773181,3.56706082,3292.6,3291.6,1.23429016]
[1768449773877,3.56706082,3292.6,3291.1,0.00456253]
[1768449774082,3.56706082,3292.6,3291.5,1.23429016]
[1768449774284,0.00353366,3292.6,3291.7,1.23429016]
[1768449775188,0.00353366,3292.6,3291.6,1.239]
[1768449775189,0.00353366,3292.6,3291.9,1.23429016]
[1768449775584,0.00353366,3292.6,3291.6,1.239]
[1768449775777,4.80488464,3292.6,3291.1,0.00456253]
[1768449775971,3.56706082,3292.5,3291.1,2.47785269]
[1768449776283,3.56706082,3292.1,3291.1,0.00456253]
[1768449776669,4.80488464,3292.6,3291.1,1.23885269]
[1768449776874,3.56706082,3292.3,3291.1,1.23885269]
[1768449777474,3.56706082,3292.3,3291.3,1.23429016]
[1768449777678,1.23429016,3292.2,3291.1,0.00456253]
[1768449777884,3.56706082,3292.2,3291.1,0.00456253]
[1768449778585,3.56706082,3292.2,3291.1,1.23885269]
[1768449780386,3.56706082,3292.2,3291.3,1.23429016]
[1768449780592,0.00353366,3292.6,3291.7,1.23429016]
[1768449780792,4.80135098,3292.4,3291.1,0.00456253]
[1768449780988,4.80135098,3292.4,3291.1,1.23885269]
[1768449781890,3.56706082,3292.4,3291.1,1.23885269]
[1768449782291,3.56706082,3292.4,3291.3,1.23429016]
[1768449782493,3.56706082,3292.4,3291.5,1.23429016]
[1768449783289,0.00353366,3292.6,3291.7,1.23429016]
[1768449783686,0.00353366,3292.6,3291.9,1.23429016]
[1768449783882,0.00353366,3292.6,3291.2,3.3697988]
[1768449784087,0.00353366,3292.6,3292.0,1.23429016]
[1768449784591,3.56706082,3293.4,3292.0,1.23429016]
[1768449784792,3.56706082,3294.3,3293.2,1.23429016]
[1768449784984,4.80135098,3294.0,3292.6,1.23429016]
[1768449785189,3.56706082,3293.7,3292.4,1.23429016]
[1768449785590,3.56706082,3293.7,3292.4,0.00313506]
[1768449785793,3.56981422,3293.7,3292.4,0.00313506]
[1768449786289,0.0027534,3293.7,3292.6,1.23429016]
[1768449786489,0.0027534,3293.7,3292.7,0.00455546]
[1768449786689,3.56981422,3293.7,3292.7,0.00455546]
[1768449787492,0.0027534,3293.7,3292.7,0.00455546]
[1768449790889,3.56981422,3293.7,3292.7,0.00455546]
[1768449791495,0.0027534,3293.7,3292.7,0.00455546]
[1768449791790,0.00453191,3293.5,3292.7,0.00455546]
[1768449792096,3.56706082,3294.1,3292.7,0.00455546]
[1768449792097,3.56706082,3294.1,3292.7,1.77593647]
[1768449792602,46.28706082,3294.6,3292.7,1.77593647]
[1768449792794,0.85294095,3294.5,3292.7,1.77593647]
[1768449792996,3.56957151,3294.5,3292.7,1.77593647]
[1768449793400,3.56957151,3294.5,3292.7,0.00455546]
[1768449793694,3.56706082,3294.1,3292.4,0.00313506]
[1768449793900,3.56706082,3293.9,3292.4,0.00313506]
[1768449794893,0.00455546,3293.5,3292.8,0.00455546]
[1768449795503,0.00251069,3294.5,3292.9,3.3697988]
[1768449795905,0.00251069,3294.5,3293.1,3.3697988]
[1768449796105,0.00251069,3294.5,3293.3,3.3697988]
[1768449796616,3.56706082,3295.4,3293.3,3.3697988]
[1768449797415,3.56706082,3295.9,3293.3,3.3697988]
[1768449797719,0.00312693,3295.4,3293.3,3.3697988]
[1768449798522,0.00312693,3295.4,3293.6,3.3697988]
[1768449798921,3.57018775,3295.4,3293.6,3.3697988]
[1768449802911,3.57018775,3295.4,3293.2,4.276]
[1768449803731,3.45017042,3295.2,3293.2,4.276]
[1768449803919,3.60195042,3295.0,3293.2,1.238]
[1768449804119,3.45017042,3294.8,3292.8,0.00455546]
[1768449806224,3.45017042,3294.8,3292.8,3.29869181]
[1768449807324,3.45017042,3294.8,3292.8,0.00455546]
[1768449807529,3.45017042,3294.6,3292.8,0.00455546]
[1768449811131,3.45017042,3295.1,3292.8,3.45056181]
[1768449811432,0.85466513,3295.0,3293.1,3.29413635]
[1768449811629,0.00312693,3295.4,3293.3,3.29413635]
[1768449811833,0.85504034,3295.3,3293.3,3.29413635]
[1768449812033,0.85504034,3295.2,3293.3,3.29413635]
[1768449812236,0.85586062,3295.1,3293.3,3.29413635]
[1768449812425,3.45017042,3295.3,3293.3,3.29413635]
[1768449812625,0.85590634,3295.2,3293.3,3.29413635]
[1768449812826,0.85590634,3295.1,3293.3,3.29413635]
[1768449813028,3.45017042,3295.3,3293.3,3.29413635]
[1768449813334,0.85592969,3295.2,3293.3,3.29413635]
[1768449813535,0.85592969,3295.1,3293.3,3.29413635]
[1768449813729,3.45017042,3294.9,3292.8,3.29869181]
[1768449814232,3.45017042,3294.9,3292.9,4.53113635]
[1768449815231,3.45017042,3294.7,3292.9,1.237]
[1768449816235,3.45017042,3294.7,3292.9,4.53113635]
[1768449817031,3.45017042,3294.5,3292.9,1.237]
[1768449817229,3.45017042,3294.3,3292.9,1.237]
[1768449821234,3.45017042,3294.8,3292.9,4.53113635]
[1768449821537,0.85806567,3294.7,3293.0,3.29413635]
[1768449821730,3.45017042,3294.8,3293.0,3.29413635]
[1768449821931,0.85807036,3294.7,3293.0,3.29413635]
[1768449822131,0.087,3294.9,3293.0,3.44600635]
[1768449822437,0.85821173,3294.8,3293.0,3.44600635]
[1768449822640,3.53717042,3294.9,3293.0,3.44600635]
[1768449822836,0.85820863,3294.8,3293.0,3.44600635]
[1768449823041,0.087,3294.9,3293.0,3.44600635]
[1768449823636,0.85835355,3294.8,3293.0,3.44600635]
[1768449823837,0.087,3294.9,3293.0,3.44600635]
[1768449824041,0.85835428,3294.8,3293.0,3.44600635]
[1768449824338,0.087,3294.9,3293.0,3.44600635]
[1768449824533,0.85865407,3294.8,3293.0,3.44600635]
[1768449824736,0.087,3294.9,3293.0,3.44600635]
[1768449824939,0.85865356,3294.8,3293.0,3.44600635]
[1768449825139,0.087,3294.9,3293.0,3.44600635]
[1768449825338,0.8586538,3294.8,3293.0,3.44600635]
[1768449825640,0.087,3294.9,3293.0,3.44600635]
[1768449825838,0.85903835,3294.8,3293.0,3.44600635]
[1768449826041,0.087,3294.9,3293.0,3.44600635]
[1768449826341,4.30920878,3294.8,3293.0,3.44600635]
[1768449826538,4.30920878,3294.7,3293.0,3.44600635]
[1768449826740,3.45017042,3294.7,3293.0,3.44600635]
[1768449827239,4.3793169,3294.6,3293.0,3.44600635]
[1768449827441,3.52029051,3294.6,3293.0,3.44600635]
[1768449832244,0.86073575,3294.5,3293.0,3.44600635]
[1768449832545,3.52029051,3294.6,3293.0,3.44600635]
[1768449832732,0.86074906,3294.5,3293.0,3.44600635]
[1768449832937,3.52029051,3294.6,3293.0,3.44600635]
[1768449833137,0.86074947,3294.5,3293.0,3.44600635]
[1768449833337,3.52029051,3294.6,3293.0,3.44600635]
[1768449833539,0.8608195,3294.5,3293.0,3.44600635]
[1768449833844,3.52029051,3294.6,3293.0,3.44600635]
[1768449834045,0.86082842,3294.5,3293.0,3.44600635]
[1768449834245,3.52029051,3294.6,3293.0,3.44600635]
[1768449834544,0.86084765,3294.5,3293.0,3.44600635]
[1768449834746,3.52029051,3294.6,3293.0,3.44600635]
[1768449834945,0.86085507,3294.5,3293.0,3.44600635]
[1768449835145,3.52029051,3294.6,3293.0,3.44600635]
[1768449835339,0.86087635,3294.5,3293.0,3.44600635]
[1768449835539,3.52029051,3294.6,3293.0,3.44600635]
[1768449835742,0.86102689,3294.5,3293.0,3.44600635]
[1768449836044,3.52029051,3294.6,3293.0,3.44600635]
[1768449836247,0.86100751,3294.5,3293.0,3.44600635]
[1768449836546,3.52029051,3294.6,3293.0,3.44600635]
[1768449843052,3.34732623,3294.4,3292.9,1.237]
[1768449843345,3.34732623,3294.2,3292.9,1.237]
[1768449843551,3.34732623,3294.0,3292.8,0.00455546]
[1768449843752,3.34732623,3293.8,3292.8,0.00204478]
[1768449843941,0.8631288,3293.7,3292.8,0.00204478]
[1768449844146,0.8631288,3293.6,3292.8,0.00204478]
[1768449844345,3.34732623,3293.8,3292.8,0.00204478]
[1768449844545,0.86261072,3293.7,3292.8,0.00204478]
[1768449844744,3.34732623,3293.8,3292.8,0.00204478]
[1768449844953,4.20992795,3293.7,3292.8,0.00204478]
[1768449845152,0.00251068,3293.6,3292.8,0.00204478]
[1768449845342,3.34732623,3294.1,3292.8,0.00204478]
[1768449845542,0.8622143,3294.0,3292.8,3.64380883]
[1768449845744,0.087,3294.2,3292.8,3.64380883]
[1768449847658,3.34732623,3294.5,3292.8,3.64380883]
[1768449847858,0.86247425,3294.4,3292.8,3.64380883]
[1768449848053,3.34732623,3294.5,3292.8,3.64380883]
[1768449848551,3.34732623,3294.9,3292.8,3.64380883]
[1768449848859,0.86254221,3294.8,3292.8,3.64380883]
[1768449849060,0.86254221,3294.7,3292.8,3.64380883]
[1768449849254,0.86254221,3294.6,3292.8,3.64380883]
[1768449849553,0.86254221,3294.5,3292.8,3.64380883]
[1768449849757,3.34732623,3294.8,3292.8,3.64380883]
[1768449849954,0.86260192,3294.7,3292.8,3.64380883]
[1768449850152,3.34732623,3294.8,3292.8,3.64380883]
[1768449850153,0.86260192,3294.6,3292.8,3.64380883]
[1768449850348,0.86260192,3294.5,3292.8,3.64380883]
[1768449850656,3.34732623,3294.8,3292.8,3.64380883]
[1768449850852,0.86264167,3294.7,3292.8,3.64380883]
[1768449851058,0.86264167,3294.6,3292.8,3.79567883]
[1768449851361,3.34732623,3295.2,3293.8,1.22903735]
[1768449851660,0.86279,3295.1,3293.8,1.22903735]
[1768449851856,0.86279,3295.0,3293.8,1.22903735]
[1768449852061,3.34732623,3295.2,3293.8,1.22903735]
[1768449852261,0.86276374,3295.1,3293.8,1.22903735]
[1768449852453,0.86276374,3295.0,3293.8,1.22903735]
[1768449852654,3.34732623,3295.2,3293.8,1.22903735]
[1768449852853,0.86265233,3295.1,3293.8,1.22903735]
[1768449853055,0.86265233,3295.0,3293.8,1.22903735]
[1768449853262,3.34732623,3295.2,3293.8,1.22903735]
[1768449853452,0.86270029,3295.1,3293.6,4.87876405]
[1768449853651,0.86270029,3295.0,3294.1,1.22915632]
[1768449853855,3.35045316,3295.4,3294.1,1.22915632]
[1768449854056,0.8626915,3295.3,3294.3,1.22915632]
[1768449854350,0.8626915,3295.2,3294.5,0.00455546]
[1768449854658,3.35045316,3295.4,3294.5,0.00455546]
[1768449854866,0.86267286,3295.3,3294.5,1.23371178]
[1768449855057,0.00312693,3295.4,3294.5,1.23371178]
[1768449855254,0.86269704,3295.3,3294.5,1.23371178]
[1768449855455,0.00312693,3295.4,3294.5,1.23371178]
[1768449855660,0.86252308,3295.3,3294.5,1.23371178]
[1768449855860,0.00312693,3295.4,3294.5,1.23371178]
[1768449856064,0.86247083,3295.3,3294.5,1.23371178]
[1768449856260,3.35045316,3295.4,3294.5,0.00455546]
[1768449856662,3.34732623,3295.2,3293.9,1.22915632]
[1768449857359,3.34732623,3295.2,3294.1,1.22915632]
[1768449857765,0.00455546,3295.0,3294.3,0.00455546]
[1768449859664,0.00455546,3295.0,3294.3,1.23371178]
[1768449860162,0.00455546,3295.0,3294.5,1.22915632]
[1768449861361,0.00455546,3295.0,3294.4,1.22915632]
[1768449862371,0.00455546,3295.0,3294.3,0.00455546]
[1768449862665,0.00312693,3295.4,3294.8,1.22915632]
[1768449862864,0.00312693,3295.4,3294.8,1.2314769]
[1768449864061,0.00312693,3295.4,3294.8,0.00232058]
[1768449864565,0.00312693,3295.4,3294.4,1.22915632]
[1768449865469,0.00312693,3295.4,3294.4,1.23289414]
[1768449865661,0.00312693,3295.4,3294.4,0.00373782]
[1768449865858,0.00312693,3295.4,3294.5,1.22915632]
[1768449867072,0.00312693,3295.4,3294.4,0.00373782]
[1768449867272,3.53367716,3295.4,3294.4,1.23289414]
[1768449869561,3.53367716,3295.4,3294.6,1.22915632]
[1768449874069,0.00312693,3295.4,3294.6,1.22915632]
[1768449875769,0.00312693,3295.4,3294.4,1.23289414]
[1768449875975,3.53055023,3295.3,3294.4,0.00373782]
[1768449880276,0.86265449,3295.2,3294.4,0.00373782]
[1768449880479,3.53055023,3295.3,3294.4,0.00373782]
[1768449880676,0.86265732,3295.2,3294.4,0.00373782]
[1768449880866,3.53055023,3295.3,3294.4,0.00373782]
[1768449881066,0.86267867,3295.2,3294.4,0.00373782]
[1768449881373,3.53055023,3295.3,3294.4,0.00373782]
[1768449881574,0.86287074,3295.2,3294.4,0.00373782]
[1768449881777,3.53055023,3295.3,3294.4,0.00373782]
[1768449881967,0.8628703,3295.2,3294.4,0.00373782]
[1768449882169,3.53055023,3295.3,3294.4,0.00373782]
[1768449882374,0.86286935,3295.2,3294.4,0.00373782]
[1768449882572,3.53055023,3295.3,3294.4,0.00373782]
[1768449882772,0.86306727,3295.2,3294.4,0.00373782]
[1768449882972,3.53055023,3295.3,3294.5,1.22915632]
[1768449883177,0.86318903,3295.2,3294.5,1.22915632]
[1768449883373,3.53055023,3295.3,3294.4,0.00373782]
[1768449883677,0.86344113,3295.2,3294.5,1.22915632]
[1768449883878,3.53055023,3295.3,3294.5,1.22915632]
[1768449884176,0.86342835,3295.2,3294.5,1.22915632]
[1768449884380,3.53055023,3295.3,3294.5,1.22915632]
[1768449884567,0.86353799,3295.2,3294.5,1.22915632]
[1768449884764,0.86353799,3295.1,3294.5,1.22915632]
[1768449884969,3.53055023,3295.3,3294.5,0.90238176]
[1768449885172,1.61141833,3294.9,3293.9,1.22915632]
[1768449885366,0.8633636,3294.8,3294.3,1.22915632]
[1768449885685,0.15488693,3295.4,3294.3,1.22915632]
[1768449886172,0.00455546,3295.2,3294.5,0.00455546]
[1768449888768,3.53510569,3295.2,3294.3,0.00229649]
[1768449888983,3.53055023,3294.9,3293.6,1.22915632]
[1768449889881,3.53055023,3294.9,3293.9,0.00455546]
[1768449890272,3.53055023,3294.9,3294.0,1.22915632]
[1768449890468,3.53055023,3294.9,3293.9,0.00455546]
[1768449897488,0.85778854,3294.8,3293.9,0.00455546]
[1768449897781,3.53055023,3294.9,3293.9,1.23371178]
[1768449897983,0.85778894,3294.8,3294.1,1.22915632]
[1768449898183,0.00455546,3295.2,3294.3,1.22915632]
[1768449898379,0.85779141,3295.1,3294.3,1.22915632]
[1768449898580,0.85779141,3295.0,3294.3,1.22915632]
[1768449898780,0.00455546,3295.2,3294.3,1.22915632]
[1768449898781,0.85779141,3294.9,3294.3,1.22915632]
[1768449898982,0.00455546,3295.2,3294.3,1.22915632]
[1768449899187,0.85778214,3295.1,3294.5,1.22915632]
[1768449899390,0.85777847,3295.0,3294.5,1.22915632]
[1768449899584,0.00455546,3295.2,3294.3,1.22915632]
[1768449899889,0.8577895,3295.1,3294.3,1.22915632]
[1768449900087,0.00455546,3295.2,3294.5,1.22915632]
[1768449900275,0.85764384,3295.1,3294.4,1.22915632]
[1768449900480,0.00455546,3295.2,3294.4,1.22915632]
[1768449900788,0.85767876,3295.1,3294.4,1.22915632]
[1768449900981,0.00455546,3295.2,3294.4,1.22915632]
[1768449901181,0.85766596,3295.1,3293.9,0.00455546]
[1768449901382,0.85766596,3295.0,3293.9,1.23371178]
[1768449901581,0.00455546,3295.2,3293.9,1.23371178]
[1768449901784,0.85707992,3295.1,3293.9,1.23371178]
[1768449901985,0.85707992,3295.0,3293.9,1.23371178]
[1768449902186,0.00455546,3295.2,3293.9,1.23371178]
[1768449902495,0.85705365,3295.1,3293.9,1.23371178]
[1768449902790,0.85705365,3295.0,3293.9,1.23371178]
[1768449902981,0.00455546,3295.2,3293.9,1.23371178]
[1768449903181,0.85693317,3295.1,3293.9,1.23371178]
[1768449903390,0.85693317,3295.0,3293.9,1.23371178]
[1768449903584,0.00455546,3295.2,3293.9,1.23371178]
[1768449903784,0.85687742,3295.1,3293.9,1.23371178]
[1768449904001,0.85687742,3295.0,3293.9,1.23371178]
[1768449904289,0.00455546,3295.2,3293.9,1.23371178]
[1768449904493,0.85710668,3295.1,3293.9,1.23371178]
[1768449904792,0.85710668,3295.0,3293.9,1.23371178]
[1768449904984,0.85716214,3294.9,3293.9,1.23371178]
[1768449905183,0.00455546,3295.2,3293.9,1.23371178]
[1768449905387,0.85718996,3295.1,3293.9,1.23371178]
[1768449905691,0.85718996,3295.0,3293.9,1.23371178]
[1768449905894,0.85718996,3294.9,3293.9,1.23371178]
[1768449906192,0.00455546,3295.2,3293.9,1.23371178]
[1768449906383,0.85722664,3295.1,3293.9,1.23371178]
[1768449906677,0.85722664,3295.0,3293.9,1.23371178]
[1768449906880,0.85722664,3294.9,3293.9,1.23371178]
[1768449907083,0.00455546,3295.2,3293.9,1.23371178]
[1768449907283,0.85727858,3295.1,3293.9,1.23371178]
[1768449907482,0.85727858,3295.0,3293.9,1.23371178]
[1768449907692,0.85727858,3294.9,3293.9,1.23371178]
[1768449907894,0.00455546,3295.2,3293.9,1.23371178]
[1768449908094,0.85730696,3295.1,3293.9,1.23371178]
[1768449908397,0.85730696,3295.0,3293.9,1.23371178]
[1768449908693,0.85730696,3294.9,3293.9,1.23371178]
[1768449908893,0.00455546,3295.2,3293.9,1.23371178]
[1768449909094,0.8573671,3295.1,3293.9,1.23371178]
[1768449909395,0.8573671,3295.0,3293.9,1.23371178]
[1768449909596,0.8573671,3294.9,3293.9,1.23371178]
[1768449909795,0.00455546,3295.2,3293.9,1.23371178]
[1768449909996,0.85743465,3295.1,3293.9,1.23371178]
[1768449910192,0.85743465,3295.0,3293.9,1.23371178]
[1768449910396,0.85743465,3294.9,3293.9,1.23371178]
[1768449910587,2.08665212,3294.8,3293.9,0.00455546]
[1768449910892,0.85744555,3294.7,3293.9,0.00455546]
[1768449911092,0.85744555,3294.6,3293.9,0.00455546]
[1768449911293,4.62696325,3294.8,3293.9,0.00455546]
[1768449911505,0.85746352,3294.7,3293.9,0.00455546]
[1768449911800,0.85746352,3294.6,3293.9,0.00455546]
[1768449911998,4.62696325,3294.8,3293.9,0.00455546]
[1768449912198,0.85743352,3294.7,3293.9,0.00455546]
[1768449912494,0.85743352,3294.6,3293.9,0.00455546]
[1768449912696,4.62696325,3294.8,3293.6,0.00293792]
[1768449912895,0.85751026,3294.7,3293.6,0.00293792]
[1768449913197,0.85751026,3294.6,3293.6,0.00293792]
[1768449913398,0.85757775,3294.5,3293.6,0.00293792]
[1768449913585,3.39780693,3294.8,3293.6,0.00293792]
[1768449913789,0.85758584,3294.7,3293.9,0.00455546]
[1768449913989,0.85758584,3294.6,3293.6,0.00293792]
[1768449914200,0.85758584,3294.5,3293.6,0.00293792]
[1768449914399,3.39780693,3294.8,3293.6,0.00293792]
[1768449914601,3.39780693,3294.4,3292.7,4.74242121]
[1768449914895,3.39780693,3294.2,3292.7,1.22961424]
[1768449915100,0.85772396,3294.1,3292.7,4.74242121]
[1768449915303,3.39780693,3294.2,3292.7,4.74242121]
[1768449915600,0.85731947,3294.1,3292.7,4.74561523]
[1768449915789,3.39780693,3294.2,3292.7,4.74561523]
[1768449915991,0.85732132,3294.1,3292.7,4.74561523]
[1768449916189,3.39780693,3294.2,3292.7,4.74561523]
[1768449916492,0.8570557,3294.1,3292.7,4.74561523]
[1768449916695,3.39780693,3294.2,3293.1,0.00455546]
[1768449917002,0.85715825,3294.1,3293.1,0.00455546]
[1768449917202,3.39780693,3294.2,3293.1,0.00455546]
[1768449917391,0.85699938,3294.1,3293.1,0.00455546]
[1768449917593,3.39780693,3294.2,3293.1,0.00455546]
[1768449917886,0.85705026,3294.1,3293.1,0.00455546]
[1768449918202,3.39780693,3294.2,3293.1,0.00455546]
[1768449918399,3.39780693,3294.0,3293.1,0.00455546]
[1768449918604,4.25473095,3293.9,3293.1,0.00455546]
[1768449918899,0.087,3294.2,3293.1,0.00455546]
[1768449919095,0.85688873,3294.1,3293.1,0.00455546]
[1768449919291,0.85688873,3294.0,3293.1,0.00455546]
[1768449919491,0.85688873,3293.9,3293.1,0.00455546]
[1768449919692,3.48480693,3294.2,3293.1,0.00455546]
[1768449919892,0.85655205,3294.1,3293.1,0.00455546]
[1768449920101,0.85655205,3294.0,3293.1,0.00455546]
[1768449920302,3.48480693,3294.2,3293.1,0.00455546]
[1768449920494,0.85627139,3294.1,3293.1,0.00455546]
[1768449920697,0.85627139,3294.0,3293.1,0.00455546]